bitfinex/quotes_SOLUSD_20241107
["timestamp","ask_amount","ask_price","bid_price","bid_amount"]
[1731018493101,6.3141,195.11,195.04,23.776884]
[1731018493274,10.10670732,195.08,195.05,0.12549]
[1731018493472,10.10670732,195.08,195.05,20.12549]
[1731018494392,10.10670732,195.09,195.05,20.12549]
[1731018494595,10.10670732,195.11,195.05,20.12549]
[1731018495104,5.29528097,195.17,195.05,20.12549]
[1731018495393,10.10670732,195.11,195.05,20.12549]
[1731018497400,10.10670732,195.1,195.05,20.12549]
[1731018497780,10.10670732,195.09,195.05,20.12549]
[1731018498288,10.10670732,195.1,195.05,20.12549]
[1731018498473,10.10670732,195.09,195.05,20.12549]
[1731018498678,5.29528097,195.17,195.13,20.0]
[1731018498879,10.10670732,195.14,195.13,20.0]
[1731018499293,10.10670732,195.14,195.07,20.0]
[1731018499503,10.10670732,195.1,195.07,20.0]
[1731018499676,5.29528097,195.17,195.08,0.12549]
[1731018499875,10.10670732,195.1,195.08,0.12549]
[1731018500298,10.10670732,195.1,195.06,0.12549]
[1731018500485,10.10670732,195.07,195.06,0.12549]
[1731018500690,10.10670732,195.08,195.06,0.12549]
[1731018500990,10.10670732,195.09,195.06,0.12549]
[1731018502485,5.29528097,195.17,195.06,0.12549]
[1731018502689,10.10670732,195.1,195.06,0.12549]
[1731018504591,10.10670732,195.07,195.04,2.29168958]
[1731018504796,10.10670732,195.05,194.99,25.31110732]
[1731018505100,6.016,195.12,194.99,25.31110732]
[1731018505101,6.016,195.12,195.08,150.69329268]
[1731018505403,6.016,195.12,194.99,15.2044]
[1731018505592,6.016,195.12,195.0,0.12549]
[1731018505784,10.10670732,195.06,195.02,0.12549]
[1731018506202,10.10670732,195.05,195.02,0.12549]
[1731018506498,10.10670732,195.05,195.01,0.12549]
[1731018506698,10.10670732,195.06,195.01,0.12549]
[1731018509100,5.38569088,195.14,195.01,0.12549]
[1731018509285,10.10670732,195.06,195.01,0.12549]
[1731018510390,10.10670732,195.04,195.0,20.0]
[1731018510597,10.10670732,195.02,195.0,20.0]
[1731018510911,6.80670732,195.02,195.01,0.12549]
[1731018511205,6.80670732,195.02,194.99,2.29772433]
[1731018511400,10.10670732,195.01,194.96,20.0]
[1731018511601,6.4033,195.08,194.96,20.0]
[1731018511804,10.10670732,195.01,194.96,20.0]
[1731018512114,10.10670732,195.02,194.97,0.12549]
[1731018512412,10.10670732,195.03,194.97,0.12549]
[1731018513114,10.10670732,195.02,194.97,0.12549]
[1731018513786,10.10670732,195.03,194.97,0.12549]
[1731018514592,10.10670732,195.04,194.99,20.12549]
[1731018515705,10.10670732,195.04,194.99,20.0]
[1731018516099,10.10670732,195.04,195.0,0.12549]
[1731018516597,10.10670732,195.03,195.0,0.12549]
[1731018517093,10.10670732,195.04,195.0,0.12549]
[1731018517714,10.10670732,195.05,195.0,0.12549]
[1731018519105,10.10670732,195.04,195.0,0.12549]
[1731018519794,10.10670732,195.04,194.99,20.0]
[1731018519999,10.10670732,195.02,194.96,30.10670732]
[1731018520409,10.10670732,195.03,194.96,30.10670732]
[1731018520611,10.10670732,195.03,194.98,20.0]
[1731018520907,10.10670732,195.03,194.99,0.12549]
[1731018522097,10.10670732,195.04,194.99,0.12549]
[1731018522297,10.10670732,195.03,194.99,0.12549]
[1731018523112,6.4033,195.08,194.97,20.0]
[1731018523113,10.10670732,195.02,194.97,20.0]
[1731018523301,10.10670732,195.02,194.96,30.10670732]
[1731018523614,10.10670732,195.02,194.97,0.12549]
[1731018524192,6.4033,195.08,195.01,0.12549]
[1731018524400,10.10670732,195.05,195.01,0.12549]
[1731018524608,10.10670732,195.04,195.01,0.12549]
[1731018525215,10.10670732,195.04,194.99,20.12549]
[1731018525525,6.4033,195.08,194.99,20.12549]
[1731018525699,10.10670732,195.03,194.95,2.23369612]
[1731018525908,10.10670732,195.0,194.94,30.10670732]
[1731018526210,10.10670732,195.02,194.96,20.12549]
[1731018526392,10.10670732,195.02,194.96,30.23219732]
[1731018526596,6.4033,195.08,194.96,20.12549]
[1731018526810,10.10670732,195.01,194.96,20.12549]
[1731018527797,10.10670732,195.01,194.95,20.0]
[1731018528120,10.10670732,195.01,194.96,0.12549]
[1731018528697,6.4033,195.08,194.96,0.12549]
[1731018528698,10.10670732,195.02,194.98,0.12549]
[1731018529102,6.4033,195.08,195.0,0.12549]
[1731018529411,10.10670732,195.04,195.0,0.12549]
[1731018530700,6.4033,195.08,195.0,0.12549]
[1731018530701,10.10670732,195.03,195.0,0.12549]
[1731018532515,6.4033,195.08,195.0,0.12549]
[1731018532722,10.10670732,195.04,195.0,0.12549]
[1731018533793,6.4033,195.08,195.0,0.12549]
[1731018533998,10.10670732,195.05,195.0,0.12549]
[1731018535116,10.10670732,195.06,195.0,0.12549]
[1731018539217,10.10670732,195.05,195.0,0.12549]
[1731018540206,10.10670732,195.06,195.0,0.12549]
[1731018540406,10.10670732,195.05,195.0,0.12549]
[1731018540818,21.2766,195.2,195.11,0.12549]
[1731018541122,21.2766,195.2,195.13,0.12549]
[1731018541323,10.10670732,195.17,195.13,0.12549]
[1731018542409,21.4064,195.24,195.13,0.12549]
[1731018542630,10.10670732,195.18,195.13,0.12549]
[1731018543333,21.4064,195.24,195.13,0.12549]
[1731018543534,10.10670732,195.17,195.13,0.12549]
[1731018544633,10.10670732,195.18,195.13,0.12549]
[1731018545006,21.4064,195.24,195.13,0.12549]
[1731018545215,10.10670732,195.18,195.13,0.12549]
[1731018545826,10.10670732,195.17,195.13,0.12549]
[1731018546125,10.10670732,195.14,195.11,2.31841079]
[1731018546326,10.10670732,195.14,195.09,23.776884]
[1731018546715,10.10670732,195.14,195.11,0.12549]
[1731018547622,10.10670732,195.14,195.09,20.12549]
[1731018548126,10.10670732,195.13,195.09,0.12549]
[1731018549613,10.10670732,195.14,195.09,0.12549]
[1731018550107,10.10670732,195.11,195.08,2.29494607]
[1731018550316,10.10670732,195.11,195.05,25.52550732]
[1731018550523,10.10670732,195.11,195.06,0.12549]
[1731018551324,10.10670732,195.12,195.06,20.12549]
[1731018551630,10.10670732,195.1,195.06,0.12549]
[1731018552031,10.10670732,195.11,195.06,0.12549]
[1731018552836,10.10670732,195.11,195.06,20.12549]
[1731018553135,10.10670732,195.07,195.05,2.33255313]
[1731018553310,10.10670732,195.07,195.0,10.10670732]
[1731018553629,10.10670732,195.07,195.0,10.13746235]
[1731018554112,10.10670732,195.06,195.0,0.03075503]
[1731018554320,10.10670732,195.06,195.0,0.15624503]
[1731018555510,10.10670732,195.06,195.01,0.12549]
[1731018557226,10.10670732,195.05,194.99,0.12549]
[1731018557419,10.10670732,195.04,194.99,0.12549]
[1731018557735,10.10670732,195.05,194.99,0.12549]
[1731018558335,10.10670732,195.06,194.99,10.23219732]
[1731018558631,10.10670732,195.06,195.01,0.12549]
[1731018558821,10.10670732,195.05,195.01,0.12549]
[1731018559223,10.10670732,195.05,194.98,23.902374]
[1731018559541,10.10670732,195.04,195.0,0.12549]
[1731018560913,10.10670732,195.04,194.98,20.0]
[1731018561933,10.10670732,195.04,194.99,0.12549]
[1731018564441,10.10670732,195.04,194.98,0.12549]
[1731018566317,10.10670732,195.03,194.98,0.12549]
[1731018566633,10.10670732,195.01,194.97,9.54698907]
[1731018567135,10.10670732,195.01,194.98,0.12549]
[1731018569429,10.10670732,195.03,194.98,0.12549]
[1731018572641,10.10670732,195.02,194.98,0.12549]
[1731018575564,10.10670732,195.0,194.98,0.12549]
[1731018575747,10.10670732,195.01,194.98,0.12549]
[1731018577836,10.10670732,195.0,194.98,0.12549]
[1731018579243,10.10670732,194.99,194.98,0.12549]
[1731018580029,10.10670732,194.99,194.97,7.24995033]
[1731018580345,10.10670732,194.98,194.93,11.38080052]
[1731018580546,10.10670732,194.95,194.94,0.12549]
[1731018580736,10.10670732,194.95,194.93,11.38080052]
[1731018580737,10.10670732,194.96,194.93,11.38080052]
[1731018581240,10.10670732,194.96,194.94,0.12549]
[1731018585253,16.4615,195.02,194.99,150.69329268]
[1731018585432,10.10670732,195.0,194.94,0.12549]
[1731018585631,10.10670732,194.96,194.94,0.12549]
[1731018587758,10.10670732,194.95,194.93,11.38080052]
[1731018587938,10.10670732,194.94,194.93,11.38080052]
[1731018589543,10.10670732,194.94,194.92,0.12549]
[1731018589743,10.10670732,194.95,194.92,0.12549]
[1731018590342,10.10670732,194.95,194.89,0.12549]
[1731018591935,23.776884,195.01,194.9,10.10670732]
[1731018592249,10.10670732,194.96,194.89,10.23219732]
[1731018592441,10.10670732,194.95,194.89,2.42872129]
[1731018592754,10.10670732,194.96,194.89,12.53542861]
[1731018595139,10.10670732,194.97,194.89,2.30323129]
[1731018595344,10.10670732,194.96,194.9,10.23219732]
[1731018595533,10.10670732,194.96,194.9,0.12549]
[1731018596659,10.10670732,194.96,194.9,10.10670732]
[1731018596836,10.10670732,194.96,194.91,0.12549]
[1731018597160,10.10670732,194.95,194.91,0.12549]
[1731018597540,10.10670732,194.95,194.9,0.12549]
[1731018597851,10.10670732,194.96,194.9,10.23219732]
[1731018600451,16.4615,195.02,194.93,0.12549]
[1731018600652,10.10670732,194.98,194.93,0.12549]
[1731018600863,10.10670732,194.99,194.93,0.12549]
[1731018601055,10.10670732,194.99,194.94,0.12549]
[1731018601553,10.10670732,194.98,194.93,0.12549]
[1731018601935,10.10670732,194.99,194.93,0.12549]
[1731018602141,10.10670732,195.0,194.95,0.12549]
[1731018602360,5.27260004,195.05,194.97,0.12549]
[1731018602540,5.27260004,195.05,194.97,10.23219732]
[1731018602742,5.27260004,195.05,195.01,10.23219732]
[1731018603044,10.10670732,195.1,195.03,10.23219732]
[1731018603558,10.10670732,195.11,195.05,0.12549]
[1731018603757,10.10670732,195.11,195.05,10.23219732]
[1731018603953,10.10670732,195.13,195.03,23.902374]
[1731018604163,6.5659,195.16,195.08,0.12549]
[1731018604454,10.10670732,195.14,195.08,0.12549]
[1731018604639,15.664,195.17,195.08,0.12549]
[1731018604839,10.10670732,195.16,195.09,10.23219732]
[1731018605056,10.10670732,195.15,195.09,10.23219732]
[1731018605436,21.7911,195.22,195.09,0.12549]
[1731018605660,10.10670732,195.16,195.11,0.12549]
[1731018606350,21.7911,195.22,195.12,0.12549]
[1731018606351,10.10670732,195.17,195.12,0.12549]
[1731018606944,10.10670732,195.17,195.11,0.12549]
[1731018607147,10.10670732,195.17,195.11,10.23219732]
[1731018607542,10.10670732,195.17,195.1,10.23219732]
[1731018607743,10.10670732,195.17,195.12,0.12549]
[1731018608568,10.10670732,195.16,195.1,10.23219732]
[1731018609169,10.10670732,195.17,195.1,10.23219732]
[1731018609464,10.10670732,195.16,195.1,0.12549]
[1731018609954,10.10670732,195.17,195.1,10.23219732]
[1731018610562,10.10670732,195.17,195.1,15.42109]
[1731018610743,10.10670732,195.17,195.11,10.23219732]
[1731018611356,10.10670732,195.17,195.11,0.12549]
[1731018612049,10.10670732,195.17,195.11,10.23219732]
[1731018612259,21.7911,195.22,195.11,10.23219732]
[1731018612450,10.10670732,195.17,195.11,10.23219732]
[1731018613972,10.10670732,195.15,195.11,0.12549]
[1731018614854,10.10670732,195.16,195.11,0.12549]
[1731018615167,21.7911,195.22,195.11,10.23219732]
[1731018615377,10.10670732,195.18,195.13,0.12549]
[1731018616947,10.10670732,195.17,195.11,10.23219732]
[1731018617466,21.7911,195.22,195.11,10.23219732]
[1731018617467,10.10670732,195.16,195.11,0.12549]
[1731018617764,21.7911,195.22,195.11,0.12549]
[1731018617765,10.10670732,195.17,195.11,34.00908132]
[1731018618862,10.10670732,195.18,195.13,0.12549]
[1731018619875,15.3614,195.22,195.11,23.776884]
[1731018619876,10.10670732,195.17,195.11,33.88359132]
[1731018620074,10.10670732,195.17,195.12,0.12549]
[1731018620257,10.10670732,195.15,195.12,0.12549]
[1731018620460,10.10670732,195.14,195.12,0.12549]
[1731018620659,10.10670732,195.14,195.11,0.12549]
[1731018620966,10.10670732,195.15,195.11,0.12549]
[1731018622171,10.10670732,195.16,195.11,0.12549]
[1731018628181,10.10670732,195.16,195.11,23.902374]
[1731018629474,10.10670732,195.14,195.09,2.2287947]
[1731018629681,10.10670732,195.13,195.08,11.37222601]
[1731018629973,10.10670732,195.13,195.09,0.12549]
[1731018630567,10.10670732,195.13,195.08,13.67685427]
[1731018630753,10.10670732,195.11,195.08,13.67685427]
[1731018630958,10.10670732,195.1,195.08,13.67685427]
[1731018631452,6.4209,195.18,195.08,13.67685427]
[1731018631453,10.10670732,195.11,195.08,13.67685427]
[1731018631665,6.4209,195.18,195.09,0.12549]
[1731018631872,10.10670732,195.12,195.09,0.12549]
[1731018634181,10.10670732,195.12,195.03,6.3744]
[1731018634182,10.10670732,195.1,195.01,9.81572208]
[1731018634368,10.10670732,195.08,195.01,23.24]
[1731018634570,10.10670732,195.08,195.01,35.57994471]
[1731018634876,10.10670732,195.09,195.02,10.10670732]
[1731018635062,10.10670732,195.09,195.03,0.12549]
[1731018635666,10.10670732,195.09,195.04,0.12549]
[1731018636765,16.3264,195.17,195.04,0.12549]
[1731018636959,10.10670732,195.11,195.06,0.12549]
[1731018637968,10.10670732,195.12,195.06,0.12549]
[1731018638584,10.10670732,195.11,195.06,0.12549]
[1731018641086,10.10670732,195.11,195.06,2.37011681]
[1731018642771,16.3264,195.17,195.06,2.37011681]
[1731018642971,10.10670732,195.11,195.06,2.37011681]
[1731018643169,16.3264,195.17,195.06,2.37011681]
[1731018643370,10.10670732,195.11,195.06,2.37011681]
[1731018648695,10.10670732,195.14,195.08,10.23219732]
[1731018649091,10.10670732,195.15,195.1,0.12549]
[1731018652003,6.4209,195.18,195.1,0.12549]
[1731018652297,10.10670732,195.15,195.1,0.12549]
[1731018653704,10.10670732,195.16,195.1,0.12549]
[1731018654009,10.10670732,195.15,195.1,0.12549]
[1731018654993,10.10670732,195.15,195.09,20.0]
[1731018655298,10.10670732,195.15,195.1,0.12549]
[1731018655590,10.10670732,195.14,195.1,0.12549]
[1731018658194,10.10670732,195.15,195.1,0.12549]
[1731018659195,40.42682928,195.2,195.08,20.12549]
[1731018659506,10.10670732,195.15,195.08,30.23219732]
[1731018659692,10.10670732,195.16,195.08,20.12549]
[1731018659992,22.7773,195.22,195.09,10.23219732]
[1731018660193,22.7773,195.22,195.12,0.12549]
[1731018660396,10.10670732,195.17,195.12,0.12549]
[1731018662300,22.7773,195.22,195.12,0.12549]
[1731018662503,10.10670732,195.19,195.13,0.12549]
[1731018662680,10.10670732,195.18,195.13,0.12549]
[1731018663282,22.7773,195.22,195.13,0.12549]
[1731018663588,10.10670732,195.18,195.13,0.12549]
[1731018663795,22.7773,195.22,195.13,0.12549]
[1731018663985,10.10670732,195.18,195.11,10.10670732]
[1731018664180,10.10670732,195.18,195.12,20.12549]
[1731018665619,10.10670732,195.19,195.14,0.12549]
[1731018665793,10.10670732,195.18,195.14,0.12549]
[1731018666109,10.10670732,195.18,195.13,20.12549]
[1731018666498,10.10670732,195.19,195.13,30.23219732]
[1731018666683,22.7773,195.22,195.13,0.12549]
[1731018666884,10.10670732,195.18,195.13,20.12549]
[1731018667891,10.10670732,195.18,195.13,0.12549]
[1731018669295,22.7773,195.22,195.13,0.12549]
[1731018669507,22.7773,195.22,195.14,0.12549]
[1731018669707,10.10670732,195.19,195.14,0.12549]
[1731018669899,0.580526,195.25,195.14,0.12549]
[1731018670097,10.10670732,195.19,195.14,0.12549]
[1731018670507,0.580526,195.25,195.14,0.12549]
[1731018670815,10.10670732,195.19,195.16,0.12549]
[1731018671392,10.10670732,195.2,195.16,0.12549]
[1731018671694,10.10670732,195.19,195.16,0.12549]
[1731018672194,0.580526,195.25,195.16,0.12549]
[1731018672398,10.10670732,195.19,195.16,0.12549]
[1731018673226,0.580526,195.25,195.16,0.12549]
[1731018673395,10.10670732,195.2,195.16,0.12549]
[1731018673599,10.10670732,195.22,195.15,10.23219732]
[1731018673924,10.10670732,195.23,195.17,0.12549]
[1731018674098,10.10670732,195.22,195.17,0.12549]
[1731018675124,0.580526,195.25,195.18,10.23219732]
[1731018675125,10.68723332,195.25,195.18,10.23219732]
[1731018675491,16.4668,195.29,195.18,10.23219732]
[1731018675718,0.58052601,195.25,195.18,10.23219732]
[1731018676094,10.10670732,195.26,195.2,0.12549]
[1731018676496,10.10670732,195.27,195.22,0.12549]
[1731018676723,10.10670732,195.28,195.22,0.12549]
[1731018676894,10.10670732,195.29,195.22,10.23219732]
[1731018677307,21.9004,195.34,195.22,10.23219732]
[1731018677506,10.10670732,195.29,195.22,10.23219732]
[1731018678215,10.10670732,195.3,195.24,0.12549]
[1731018678812,28.0022281,195.39,195.26,0.12549]
[1731018679117,10.10670732,195.32,195.26,10.23219732]
[1731018679317,10.10670732,195.33,195.28,0.12549]
[1731018679709,10.10670732,195.34,195.28,0.12549]
[1731018680517,28.0022281,195.39,195.28,34.00908132]
[1731018680715,10.10670732,195.35,195.28,34.00908132]
[1731018681410,10.10670732,195.37,195.32,0.12549]
[1731018682014,10.10670732,195.38,195.32,0.12549]
[1731018682526,5.3371281,195.39,195.33,10.23219732]
[1731018682820,10.10670732,195.37,195.33,0.12549]
[1731018683324,10.10670732,195.38,195.33,0.12549]
[1731018683910,10.10670732,195.37,195.33,0.12549]
[1731018684615,40.42682928,195.4,195.33,0.12549]
[1731018684916,10.10670732,195.34,195.33,0.12549]
[1731018685125,10.10670732,195.34,195.32,2.27475357]
[1731018685429,10.10670732,195.33,195.27,11.36076837]
[1731018685727,10.10670732,195.3,195.27,11.36076837]
[1731018686020,10.10670732,195.28,195.27,11.36076837]
[1731018686211,10.10670732,195.28,195.27,11.48625837]
[1731018686415,10.10670732,195.29,195.27,11.36076837]
[1731018686806,6.3836,195.35,195.28,0.12549]
[1731018687013,10.10670732,195.29,195.28,0.12549]
[1731018687320,10.10670732,195.29,195.27,11.36076837]
[1731018687527,10.10670732,195.28,195.27,11.36076837]
[1731018688206,10.10670732,195.28,195.27,11.48625837]
[1731018689421,6.3836,195.35,195.28,0.12549]
[1731018689622,10.10670732,195.29,195.28,0.12549]
[1731018692424,10.10670732,195.3,195.28,0.12549]
[1731018692619,10.10670732,195.29,195.28,0.12549]
[1731018695831,10.10670732,195.3,195.28,0.12549]
[1731018696014,10.10670732,195.29,195.28,0.12549]
[1731018697535,15.3435,195.36,195.28,0.12549]
[1731018697709,10.10670732,195.33,195.28,0.12549]
[1731018699433,10.10670732,195.35,195.3,0.12549]
[1731018699814,10.10670732,195.36,195.3,20.12549]
[1731018700024,10.10670732,195.35,195.3,20.12549]
[1731018706724,6.4552,195.4,195.3,20.12549]
[1731018707030,10.10670732,195.35,195.3,20.12549]
[1731018708427,10.10670732,195.34,195.3,20.12549]
[1731018710234,46.88202928,195.4,195.3,20.12549]
[1731018710444,10.10670732,195.35,195.3,20.12549]
[1731018715128,2.33654068,195.35,195.3,20.12549]
[1731018719743,10.10670732,195.36,195.3,20.12549]
[1731018721744,21.9596,195.44,195.3,30.23219732]
[1731018721937,21.9596,195.44,195.32,20.12549]
[1731018722248,10.10670732,195.38,195.32,20.12549]
[1731018724351,10.10670732,195.38,195.32,30.23219732]
[1731018725343,10.10670732,195.39,195.32,30.23219732]
[1731018725546,10.10670732,195.38,195.32,30.23219732]
[1731018726135,10.10670732,195.39,195.34,20.12549]
[1731018726341,21.9596,195.44,195.34,20.12549]
[1731018726342,10.10670732,195.38,195.34,20.12549]
[1731018726851,10.10670732,195.38,195.32,20.12549]
[1731018728045,10.10670732,195.37,195.32,20.12549]
[1731018728235,10.10670732,195.37,195.32,0.12549]
[1731018728438,10.10670732,195.38,195.32,0.12549]
[1731018729355,21.9596,195.44,195.32,0.12549]
[1731018729356,10.10670732,195.36,195.32,0.12549]
[1731018729549,10.10670732,195.34,195.31,2.21957564]
[1731018729745,10.10670732,195.34,195.29,11.3247781]
[1731018729746,10.10670732,195.34,195.3,0.12549]
[1731018729939,10.10670732,195.35,195.29,11.3247781]
[1731018730139,10.10670732,195.33,195.29,11.3247781]
[1731018730335,10.10670732,195.32,195.29,11.3247781]
[1731018730645,10.10670732,195.32,195.3,0.12549]
[1731018730844,10.10670732,195.32,195.29,13.62055126]
[1731018731543,10.10670732,195.32,195.29,11.3247781]
[1731018731946,21.7579,195.37,195.3,0.12549]
[1731018732150,10.10670732,195.32,195.3,0.12549]
[1731018733851,10.10670732,195.33,195.3,0.12549]
[1731018735543,10.10670732,195.34,195.3,0.12549]
[1731018735943,10.10670732,195.33,195.3,0.12549]
[1731018736235,21.7579,195.37,195.3,0.12549]
[1731018736446,15.6597,195.37,195.3,10.23219732]
[1731018736959,16.3634,195.41,195.3,10.23219732]
[1731018737152,10.10670732,195.36,195.3,0.12549]
[1731018737459,23.776884,195.4,195.3,0.12549]
[1731018737763,10.10670732,195.35,195.3,0.12549]
[1731018737962,16.3634,195.41,195.3,0.12549]
[1731018738256,10.10670732,195.35,195.3,0.12549]
[1731018739363,16.3634,195.41,195.3,0.12549]
[1731018739568,10.10670732,195.36,195.3,20.12549]
[1731018740058,10.10670732,195.37,195.32,0.12549]
[1731018741260,10.10670732,195.38,195.32,20.12549]
[1731018741562,10.10670732,195.38,195.32,30.23219732]
[1731018741762,16.3634,195.41,195.32,30.23219732]
[1731018741967,10.10670732,195.38,195.3,20.12549]
[1731018742142,0.580526,195.45,195.35,20.12549]
[1731018742466,10.10670732,195.4,195.35,20.12549]
[1731018744254,10.10670732,195.39,195.34,0.12549]
[1731018745259,10.10670732,195.39,195.34,2.34393377]
[1731018747467,0.580526,195.45,195.34,2.34393377]
[1731018747769,10.10670732,195.41,195.36,0.12549]
[1731018749158,0.580526,195.45,195.36,0.12549]
[1731018749453,10.10670732,195.41,195.36,0.12549]
[1731018751748,0.580526,195.45,195.36,0.12549]
[1731018752149,10.10670732,195.4,195.36,0.12549]
[1731018753367,10.10670732,195.42,195.36,0.12549]
[1731018754365,0.580526,195.45,195.38,20.12549]
[1731018754572,10.10670732,195.44,195.38,20.12549]
[1731018755176,0.580526,195.45,195.38,20.12549]
[1731018755359,10.10670732,195.44,195.38,20.12549]
[1731018756855,0.580526,195.45,195.4,0.12549]
[1731018757050,10.10670732,195.45,195.41,20.0]
[1731018757357,15.4457,195.48,195.42,0.12549]
[1731018757564,10.10670732,195.45,195.42,0.12549]
[1731018758074,10.10670732,195.46,195.42,0.12549]
[1731018758760,6.3835,195.49,195.42,0.12549]
[1731018759072,10.10670732,195.46,195.42,0.12549]
[1731018760757,10.10670732,195.49,195.44,0.12549]
[1731018760957,10.10670732,195.48,195.44,0.12549]
[1731018762277,23.776884,195.56,195.44,0.12549]
[1731018762466,10.10670732,195.48,195.44,0.12549]
[1731018762974,10.10670732,195.49,195.44,0.12549]
[1731018763163,21.6241,195.57,195.46,0.12549]
[1731018763359,10.10670732,195.5,195.46,0.12549]
[1731018763569,10.10670732,195.51,195.46,0.12549]
[1731018764077,8.60670732,195.51,195.46,0.12549]
[1731018764960,21.5241,195.57,195.46,0.12549]
[1731018764961,10.10670732,195.52,195.48,0.12549]
[1731018765372,10.10670732,195.51,195.48,0.12549]
[1731018765672,10.10670732,195.5,195.48,0.12549]
[1731018765873,10.10670732,195.51,195.48,0.12549]
[1731018768068,21.5241,195.57,195.48,0.12549]
[1731018768389,10.10670732,195.53,195.48,0.12549]
[1731018770374,10.10670732,195.53,195.5,0.12549]
[1731018770773,2.08590146,195.53,195.5,0.12549]
[1731018771663,10.10670732,195.55,195.5,0.12549]
[1731018772968,10.10670732,195.55,195.52,0.12549]
[1731018773383,10.10670732,195.56,195.52,0.12549]
[1731018774164,10.10670732,195.57,195.52,0.12549]
[1731018774367,10.10670732,195.56,195.52,0.12549]
[1731018774674,10.10670732,195.57,195.52,0.12549]
[1731018775068,10.10670732,195.56,195.52,0.12549]
[1731018775270,10.10670732,195.57,195.52,0.12549]
[1731018776964,10.10670732,195.53,195.5,22.23423493]
[1731018777169,10.10670732,195.54,195.5,22.23423493]
[1731018777385,10.10670732,195.54,195.51,0.12549]
[1731018779086,10.10670732,195.52,195.46,6.57565683]
[1731018779287,10.10670732,195.49,195.46,6.57565683]
[1731018779484,10.10670732,195.48,195.44,5.74616983]
[1731018779693,10.10670732,195.48,195.44,2.31639843]
[1731018779894,10.10670732,195.48,195.42,0.12549]
[1731018780192,10.10670732,195.47,195.43,6.57565683]
[1731018780499,10.10670732,195.46,195.41,11.07430459]
[1731018780709,10.10670732,195.46,195.42,0.12549]
[1731018780873,10.10670732,195.43,195.42,7.16917114]
[1731018781074,10.10670732,195.43,195.42,7.29466114]
[1731018781998,10.10670732,195.43,195.42,7.16917114]
[1731018784302,10.10670732,195.43,195.4,0.12549]
[1731018784478,22.888,195.52,195.4,0.12549]
[1731018784687,10.10670732,195.43,195.4,0.12549]
[1731018785190,10.10670732,195.44,195.4,0.12549]
[1731018785578,10.10670732,195.44,195.38,0.12549]
[1731018785783,10.10670732,195.44,195.38,20.12549]
[1731018785983,10.10670732,195.44,195.38,30.23219732]
[1731018786507,10.10670732,195.44,195.38,0.12549]
[1731018787388,22.888,195.52,195.38,34.00908132]
[1731018787593,22.888,195.52,195.4,0.12549]
[1731018787786,10.10670732,195.45,195.4,0.12549]
[1731018790002,22.888,195.52,195.42,0.12549]
[1731018790300,10.10670732,195.46,195.42,0.12549]
[1731018792607,22.888,195.52,195.42,0.12549]
[1731018792812,22.888,195.52,195.4,2.23356197]
[1731018792813,10.10670732,195.5,195.44,0.12549]
[1731018792983,22.888,195.52,195.44,0.12549]
[1731018793187,10.10670732,195.48,195.44,0.12549]
[1731018794606,10.10670732,195.48,195.44,0.12549]
[1731018797988,10.10670732,195.49,195.44,0.12549]
[1731018799195,10.10670732,195.48,195.44,0.12549]
[1731018801803,10.10670732,195.48,195.42,0.12549]
[1731018802208,10.10670732,195.48,195.42,20.12549]
[1731018804407,10.10670732,195.48,195.43,0.12549]
[1731018805192,10.10670732,195.47,195.4,2.23356197]
[1731018805409,10.10670732,195.47,195.43,0.12549]
[1731018806199,10.10670732,195.47,195.39,20.12549]
[1731018806398,10.10670732,195.47,195.42,20.12549]
[1731018808197,22.888,195.52,195.38,26.09457581]
[1731018808198,10.10670732,195.46,195.38,22.31769181]
[1731018808421,23.776884,195.51,195.38,22.31769181]
[1731018808422,10.10670732,195.45,195.4,20.0]
[1731018808600,23.776884,195.51,195.41,0.12549]
[1731018808804,10.10670732,195.46,195.41,0.12549]
[1731018809200,10.10670732,195.43,195.38,2.31769181]
[1731018809513,10.10670732,195.42,195.37,0.12549]
[1731018810317,10.10670732,195.42,195.36,21.46186388]
[1731018810707,10.10670732,195.42,195.37,20.12549]
[1731018812107,10.10670732,195.43,195.37,20.12549]
[1731018812308,10.10670732,195.44,195.39,0.12549]
[1731018812620,0.1,195.49,195.38,0.12549]
[1731018812621,10.10670732,195.43,195.38,0.12549]
[1731018813913,0.1,195.49,195.38,0.12549]
[1731018814116,10.10670732,195.43,195.38,0.12549]